[Event "WSTCC-65 2024"]
[Site "Krakow"]
[Date "2024.07.04"]
[Round "3.1"]
[White "Nunn, John D M"]
[Black "Maier, Christian"]
[Result "1/2-1/2"]
[ECO "B07"]
[WhiteElo "2552"]
[BlackElo "2252"]
[Annotator "TA"]
[PlyCount "65"]
[EventDate "2024.07.01"]
[EventType "team-tourn"]
[EventCountry "POL"]
[SourceTitle "playchess.com"]
[Source "ChessBase"]
[SourceQuality "1"]
[TimeControl "40/5400+30:1800+30"]

{[%evp 12,65,54,43,51,25,52,34,27,27,37,52,55,41,45,44,41,35,87,94,89,85,86,94,81,90,89,27,31,30,6,-20,-15,-8,-14,-20,0,0,0,0,0,0,0,0,0,0,0,0,0,0,0,0,0,-43,-52,-32]} 1. e4 {[%emt 0:00:08]} d6 {[%emt 0:00:50]} 2. d4 {[%emt 0:00:07]} Nf6 {[%emt 0:00:12]} 3. Nc3 {[%emt 0:00:07]} e5 {[%emt 0:00:47]} 4. Nf3 {[%emt 0:02:01]} exd4 {[%emt 0:02:04]} 5. Qxd4 {[%emt 0:03:17]} Be7 {[%emt 0:01:15]} 6. Bf4 {[%emt 0:03:49]} O-O {[%emt 0:02:20]} 7. O-O-O {[%emt 0:00:32]} Nc6 {[%emt 0:00:20]} 8. Qe3 {[%emt 0:07:29]} Ng4 {[%emt 0:02:25]} 9. Qe1 {[%emt 0:11:50]} Bf6 {[%emt 0:02:53] White is slightly better.} 10. Nd5 {[%emt 0:00:13]} Re8 {[%emt 0:00:18]} 11. h3 {[%emt 0:06:07]} Nge5 {[%emt 0:00:07]} 12. Nxe5 {[%emt 0:00:39]} Bxe5 {[%emt 0:15:37]} 13. Bxe5 {[%emt 0:07:03]} Nxe5 {[%emt 0:00:54]} 14. f4 {[%emt 0:05:46][%cal Bf2f4,Bf4f5][%mdl 32]} c6 {[%emt 0:01:43] [#]} (14... Nd7 $14) 15. Nc3 $1 $16 {[%emt 0:02:18]} Ng6 {[%emt 0:00:24]} 16. Qd2 {[%emt 0:01:15]} Qh4 {[%emt 0:09:26] Inhibits g3.} 17. f5 {[%emt 0:04:44]} ({Don't play} 17. Qxd6 $6 Nxf4 18. Qc7 Qg3 $15) 17... Ne5 {[%emt 0:00:06]} 18. Qxd6 {[%emt 0:01:41]} b5 {[%emt 0:07:52]} 19. g4 {[%emt 0:08:23]} (19. Kb1 $16) 19... a5 $11 {[%emt 0:04:23]} 20. Be2 {[%emt 0:13:02]} Ba6 {[%emt 0:04:07]} 21. Qd2 {[%emt 0:00:26]} b4 {[%emt 0:04:01]} 22. Na4 {[%emt 0:00:28]} Rad8 {[%emt 0:00:12]} 23. Qe1 {[%emt 0:05:32]} Qg5+ {[%emt 0:04:44]} 24. Kb1 {[%emt 0:00:06]} Rxd1+ {[%emt 0:00:42]} 25. Qxd1 {[%emt 0:02:18]} Rd8 {[%emt 0:00:12]} 26. Qe1 {[%emt 0:00:06]} Bxe2 {[%emt 0:03:22]} 27. Qxe2 {[%emt 0:00:56]} Rd2 {[%emt 0:00:18]} 28. Qa6 {[%emt 0:00:32]} Qd8 $36 {[%emt 0:00:15][%mdl 2048] [#] ( -> ...Rd1+). Black has some pressure.} 29. Rc1 {[%emt 0:01:07]} h6 {[%emt 0:01:02]} 30. Nc5 {[%emt 0:02:51]} Rd1 {[%emt 0:06:56]} 31. Nd3 {[%emt 0:01:24]} Rxc1+ {[%emt 0:00:06]} 32. Nxc1 {[%emt 0:02:27]} (32. Kxc1 $5 Nf3 33. Qa7 (33. Qxc6 $2 {perishes.} Qg5+ 34. Kb1 Nd2+ 35. Ka1 Qe3 $19) 33... Qg5+ 34. Kb1 $15) 32... Qd4 {[%emt 0:00:50] Hoping for ...Nc4.} 33. Qe2 {[%emt 0:01:55] Weighted Error Value: White=0.09 (flawless) /Black=0.06 (flawless) .  Mistake:       	White=1     	Black=1      Inaccurate:     	White=2     	Black=1      OK:         	White=13    	Black=16     Best:        	White=2     	Black=2      Strong:       	White=1     	---} 1/2-1/2

[Event "WSTCC-65 2024"]
[Site "Krakow"]
[Date "2024.07.04"]
[Round "3.1"]
[White "Wallace, John Paul"]
[Black "Carvalho, Herbert Abreu"]
[Result "0-1"]
[ECO "C81"]
[WhiteElo "2369"]
[BlackElo "2123"]
[Annotator "TA"]
[PlyCount "108"]
[EventDate "2024.07.01"]
[EventType "team-tourn"]
[EventCountry "POL"]
[SourceTitle "playchess.com"]
[Source "ChessBase"]
[SourceQuality "1"]
[TimeControl "40/5400+30:1800+30"]

{[%evp 21,108,25,27,31,28,0,12,5,0,0,16,21,11,0,6,0,0,-19,-11,-19,0,0,0,-29,-25,-15,-9,-93,-25,-25,58,-125,0,-7,-16,-78,-74,-67,-26,-136,-43,-164,-160,-141,-143,-145,-145,-341,-254,-280,-180,-200,-196,-193,-181,-188,-187,-376,-249,-249,-249,-249,-230,-241,-241,-241,-238,-236,-234,-397,-231,-331,-327,-392,-295,-458,-439,-564,-549,-705,-689,-1055,-1055,-1040,-610,-588,-441,-415,-387]} 1. e4 {[%emt 0:01:17]} e5 {[%emt 0:05:59]} 2. Nf3 {[%emt 0:00:07]} Nc6 {[%emt 0:00:17]} 3. Bb5 {[%emt 0:00:19][%cal Bf1b5,Bb5a4,Ba4b3][%mdl 32]} a6 {[%emt 0:00:19]} 4. Ba4 {[%emt 0:00:04]} Nf6 {[%emt 0:03:10]} 5. O-O {[%emt 0:00:13]} Nxe4 {[%emt 0:00:10]} 6. d4 {[%emt 0:00:33]} b5 {[%emt 0:00:06]} 7. Bb3 {[%emt 0:00:10]} d5 {[%emt 0:00:08]} 8. dxe5 {[%emt 0:00:08]} Be6 {[%emt 0:00:08]} 9. Qe2 {[%emt 0:02:14]} Nc5 {[%emt 0:09:29]} 10. Rd1 {[%emt 0:03:03]} Nxb3 {[%emt 0:07:53]} 11. axb3 {[%emt 0:00:05]} Qc8 {[%emt 0:01:18]} 12. Nbd2 {[%emt 0:12:59]} Be7 {[%emt 0:01:30]} 13. c3 {[%emt 0:18:05]} b4 14. Nd4 {The position is equal.} Nxd4 {[%emt 0:17:30]} 15. cxd4 {[%emt 0:00:35]} O-O {[%emt 0:00:26]} 16. Nf3 {[%emt 0:00:14]} h6 {[%emt 0:03:44]} 17. h3 {[%emt 0:01:50]} Bd7 {[%emt 0:01:03]} 18. Bf4 {[%emt 0:07:42]} Bb5 {[%emt 0:00:38]} 19. Qe3 {[%emt 0:02:10]} Qe6 {[%emt 0:03:00]} 20. Ne1 {[%emt 0:05:26][%cal Bf3e1,Be1d3,Bd3f4][%mdl 32]} c5 {[%emt 0:17:10]} 21. dxc5 {[%emt 0:06:16]} d4 {[%emt 0:00:27]} 22. Qg3 {[%emt 0:02:57]} (22. Rxd4 $2 Bxc5 23. Nf3 Qb6 $17 (23... Bxd4 24. Nxd4 Qg6 25. Kh2 $15)) 22... Bxc5 {[%emt 0:01:32]} 23. Nd3 {[%emt 0:01:31]} Be7 $36 {[%emt 0:03:01][%cal Og8h7][%mdl 2048] Black is more active.} 24. Rac1 {[%emt 0:04:25]} (24. Bd2 $11) 24... Rac8 {[%emt 0:03:34]} (24... Qxb3 $2 25. Bxh6 g6 26. Bxf8 Bxf8 27. Qf3 $18) (24... Rfc8 $17 {White must now prevent ...Rxc1.} 25. Ne1 Rxc1 26. Rxc1 Be2) 25. Bd2 $11 {[%emt 0:13:23]} a5 {[%emt 0:03:16]} (25... Qxb3 26. Bxh6 g6 27. Bxf8 Bxf8 28. Qg4 Rxc1 29. Nxc1 Qxb2 30. e6 $16 (30. Qxd4 Qc2 $11)) (25... Rxc1 $11 26. Rxc1 Re8 (26... Qxb3 $2 27. Bxh6 g6 28. Bxf8 $18) 27. Nxb4 Bxb4 28. Bxb4 Qxe5) 26. Re1 $2 {[%emt 0:00:11] [#]} (26. Nf4 $1 $14 {is the one way to stay ahead.} Qd7 (26... Qxe5 27. Ng6 $16) 27. Ra1 (27. Nh5 g5 $11)) 26... Kh8 {[%emt 0:03:06]} (26... Qxb3 $2 {is the wrong capture.} 27. Bxh6 g6 28. Bxf8 Rxf8 29. Rcd1 $16 (29. Rc7 $2 Bd8 $19)) (26... Rxc1 $17 27. Nxc1 (27. Rxc1 Bxd3 28. Qxd3 Qxe5 $17) 27... Rc8) 27. Nf4 {[%emt 0:00:15]} Qf5 {[%emt 0:00:06]} 28. Qg4 {[%emt 0:07:24]} (28. Rxc8 $11 {remains equal.} Rxc8 29. e6) 28... Qxg4 $17 {[%emt 0:02:56]} 29. hxg4 {[%emt 0:00:06]} Bg5 {[%emt 0:01:36] ...Bd7 is the strong threat.} 30. f3 {[%emt 0:02:45]} (30. e6 $11) 30... Bh4 {[%emt 0:01:40]} ({Black should play} 30... Kg8 $17 31. Kf2 Rfe8) 31. Rxc8 {[%emt 0:04:55]} ({Only move:} 31. Red1 $15) 31... Rxc8 $19 {[%emt 0:00:09]} 32. Re4 {[%emt 0:00:03]} Rc2 {[%emt 0:01:33]} 33. Rxd4 {[%emt 0:00:47]} Rxb2 {[%emt 0:01:08] Black is more active.} 34. g3 $2 {[%emt 0:01:58] This costs White the game.} (34. Kh2 $17 {was forced.}) 34... Bg5 {[%emt 0:03:10]} 35. e6 {[%emt 0:00:12]} Kg8 {[%emt 0:03:11] [#] aiming for ...fxe6.} (35... Rxb3 36. exf7 Kh7 37. f8=Q $18 (37. f8=B Rxf3 38. Rd5 Bc6 $17)) 36. Bxb4 {[%emt 0:00:46]} axb4 {[%emt 0:00:39]} 37. Rxb4 {[%emt 0:00:04]} Be8 {[%emt 0:01:00] ...fxe6 would now be deadly.} 38. Rb8 {[%emt 0:01:23]} Kf8 {[%emt 0:00:46] And now ...Bxf4 would win.} 39. Nd5 {[%emt 0:00:14]} (39. exf7 {only move.} Kxf7 40. Rb7+ Kf6 41. Nd5+ Ke5 42. f4+ Kxd5 43. fxg5 hxg5 44. Rxg7) 39... Rc2 {[%emt 0:00:45]} ({Inferior is} 39... fxe6 40. Nc7 $11) 40. exf7 {[%emt 0:02:47]} Kxf7 {[%emt 0:00:22]} 41. f4 {[%emt 0:11:42]} Bf6 {[%emt 0:05:51]} 42. Nxf6 {[%emt 0:01:50]} gxf6 {[%emt 0:00:57][%mdl 4096] Endgame. KRB-KR} 43. Rb7+ {[%emt 0:00:28]} Kg8 {[%emt 0:00:27]} 44. Rb8 {[%emt 0:00:41]} Kf8 {[%emt 0:00:19]} 45. Rb7 $2 {[%emt 0:01:32]} (45. b4) 45... Bf7 {[%emt 0:00:30]} (45... Rg2+ $142 46. Kxg2 Bc6+ 47. Kh3 Bxb7) 46. b4 {[%emt 0:02:23]} (46. Rb8+ $142 Kg7 47. b4) 46... Bd5 {[%emt 0:04:39]} 47. Rb5 {[%emt 0:05:41]} Rd2 {[%emt 0:02:10]} 48. Rb6 {[%emt 0:01:16]} (48. Ra5 $142) 48... Ke7 {[%emt 0:02:33]} 49. Kf1 {[%emt 0:01:24]} Bf3 {[%emt 0:00:38]} 50. g5 {[%emt 0:02:39]} hxg5 {[%emt 0:01:15]} 51. fxg5 {[%emt 0:00:04]} fxg5 {[%emt 0:00:15]} 52. Rg6 {[%emt 0:01:30]} g4 {[%emt 0:00:10]} 53. b5 {[%emt 0:00:14]} Kd7 {[%emt 0:01:51]} 54. b6 {[%emt 0:00:16]} Kc8 {[%emt 0:00:37] Weighted Error Value: White=0.56/Black=0.36.  Loses game:     	White=1     	---        Mistake:       	White=9     	Black=5      Inaccurate:     	White=2     	Black=3      OK:         	White=7     	Black=14     Best:        	White=4     	Black=4} 0-1

[Event "WSTCC-65 2024"]
[Site "Krakow"]
[Date "2024.07.04"]
[Round "3.1"]
[White "Pruefer, Friedbert"]
[Black "Janocha, Wieslaw"]
[Result "0-1"]
[ECO "A40"]
[WhiteElo "2214"]
[BlackElo "2167"]
[Annotator "RC"]
[PlyCount "102"]
[EventDate "2024.07.01"]
[EventType "team-tourn"]
[EventCountry "POL"]
[SourceTitle "playchess.com"]
[Source "ChessBase"]
[SourceQuality "1"]
[TimeControl "40/5400+30:1800+30"]

1. d4 {[%emt 0:00:01]} e6 {[%emt 0:00:09]} 2. Nf3 {[%emt 0:00:15]} Nf6 {[%emt 0:00:11]} 3. Bf4 {[%emt 0:00:33]} c5 {[%emt 0:01:23]} 4. c3 {[%emt 0:01:39]} Nc6 {[%emt 0:01:32]} 5. e3 {[%emt 0:04:27]} d5 {[%emt 0:01:58]} 6. Nbd2 {[%emt 0:00:50]} Bd6 {[%emt 0:01:07]} 7. Bg3 {[%emt 0:00:27]} O-O {[%emt 0:03:15]} 8. Bd3 {[%emt 0:00:35]} cxd4 {[%emt 0:05:13]} 9. exd4 {[%emt 0:00:41]} Rb8 {[%emt 0:01:25]} 10. Qe2 {[%emt 0:06:14]} a6 {[%emt 0:03:19]} 11. a4 {[%emt 0:05:17]} Nh5 {[%emt 0:06:38]} 12. Ne5 {[%emt 0:08:39]} g6 {[%emt 0:00:08]} 13. Qe3 {[%emt 0:20:24]} Qc7 {[%emt 0:08:25]} 14. Ndf3 {[%emt 0:09:34]} f6 {[%emt 0:09:03]} 15. Nxc6 {[%emt 0:05:25]} Nxg3 {[%emt 0:03:21]} 16. hxg3 {[%emt 0:01:56]} bxc6 {[%emt 0:00:07]} 17. b4 {[%emt 0:08:39]} a5 {[%emt 0:11:53]} 18. Qh6 {[%emt 0:02:43]} axb4 {[%emt 0:09:53]} 19. Rb1 {[%emt 0:07:02]} Qg7 {[%emt 0:05:38]} 20. cxb4 {[%emt 0:03:50]} Bxb4+ {[%emt 0:01:40]} 21. Ke2 {[%emt 0:02:35]} Bd7 {[%emt 0:01:36]} 22. Qxg7+ {[%emt 0:00:40]} Kxg7 {[%emt 0:00:02]} 23. Rhc1 {[%emt 0:00:28]} Rb6 {[%emt 0:01:12]} 24. Rb3 {[%emt 0:00:54]} Rfb8 {[%emt 0:02:17]} 25. Rcb1 {[%emt 0:00:24]} Kf7 {[%emt 0:09:16]} 26. g4 {[%emt 0:01:54]} Ba5 {[%emt 0:01:10]} 27. Nd2 {[%emt 0:01:27]} e5 {[%emt 0:00:44]} 28. Rxb6 {[%emt 0:00:32]} Rxb6 {[%emt 0:00:47]} 29. Nb3 {[%emt 0:00:16]} e4 {[%emt 0:00:31]} 30. Bc2 {[%emt 0:00:16]} Bc3 {[%emt 0:02:42]} 31. f3 {[%emt 0:00:49]} f5 {[%emt 0:03:35]} 32. g5 {[%emt 0:00:29]} Bc8 {[%emt 0:00:27]} 33. a5 {[%emt 0:01:07]} Rb4 {[%emt 0:00:53]} 34. Ke3 {[%emt 0:00:31]} c5 {[%emt 0:01:57]} 35. dxc5 {[%emt 0:00:45]} d4+ {[%emt 0:00:01]} 36. Kf4 {[%emt 0:00:19]} d3 {[%emt 0:00:10]} 37. Bd1 {[%emt 0:00:05]} Bb7 {[%emt 0:00:41]} 38. Ke3 {[%emt 0:00:48]} Ke6 {[%emt 0:00:20]} 39. Rc1 {[%emt 0:00:15]} Rc4 {[%emt 0:00:42]} 40. fxe4 {[%emt 0:01:19]} fxe4 {[%emt 0:00:08]} 41. Bg4+ {[%emt 0:32:34]} Kd5 {[%emt 0:31:30]} 42. Bd7 {[%emt 0:01:02]} Bd4+ {[%emt 0:01:43]} 43. Kd2 {[%emt 0:00:31]} Rxc1 {[%emt 0:00:22]} 44. Kxc1 {[%emt 0:01:06]} Bxc5 {[%emt 0:00:16]} 45. Be6+ Kd6 {[%emt 0:00:00]} 46. Bg8 {[%emt 0:00:00]} Bd5 {[%emt 0:00:00]} 47. Bxd5 {[%emt 0:00:00]} Kxd5 {[%emt 0:00:00]} 48. a6 {[%emt 0:00:00]} Bb6 {[%emt 0:00:00]} 49. Kd1 {[%emt 0:00:00]} e3 {[%emt 0:00:00]} 50. g4 {[%emt 0:00:00]} Kc4 {[%emt 0:00:00]} 51. Na5+ {[%emt 0:00:00]} Bxa5 0-1

[Event "WSTCC-65 2024"]
[Site "Krakow"]
[Date "2024.07.04"]
[Round "3.2"]
[White "Raupp, Thomas"]
[Black "Kosten, Anthony C."]
[Result "1/2-1/2"]
[ECO "E20"]
[WhiteElo "2237"]
[BlackElo "2360"]
[Annotator "TA"]
[PlyCount "61"]
[EventDate "2024.07.01"]
[EventType "team-tourn"]
[EventCountry "POL"]
[SourceTitle "playchess.com"]
[Source "ChessBase"]
[SourceQuality "1"]
[TimeControl "40/5400+30:1800+30"]

{[%evp 12,61,15,25,13,7,29,29,18,-25,-10,-50,45,45,58,35,60,60,84,48,41,46,55,38,58,66,52,38,51,27,92,75,214,201,205,55,49,-20,-9,-134,-77,-140,-66,-61,-44,-44,0,-63,0,-31,0,-64]} 1. d4 {[%emt 0:00:50]} Nf6 {[%emt 0:00:08]} 2. c4 {[%emt 0:00:11]} e6 {[%emt 0:00:07]} 3. Nc3 {[%emt 0:00:11]} Bb4 {[%emt 0:00:07]} 4. f3 {[%emt 0:02:24]} c5 {[%emt 0:04:39]} 5. d5 {[%emt 0:00:12]} O-O {[%emt 0:00:21]} 6. e4 {[%emt 0:00:24]} d6 {[%emt 0:00:17]} 7. Nge2 {[%emt 0:03:42]} a6 {[%emt 0:01:24]} 8. a4 {[%emt 0:06:17][%cal Ba2a4,Ba4b5][%mdl 32]} Ba5 {[%emt 0:06:18][%cal Ob7b5]} 9. Ng3 {[%emt 0:12:56]} b5 {[%emt 0:02:27] White has an edge.} 10. Kf2 {[%emt 0:09:49]} Nbd7 {[%emt 0:07:15]} 11. Bf4 {[%emt 0:15:54]} Ne5 {[%emt 0:11:10]} (11... bxc4 $15 12. dxe6 fxe6 13. Bxd6 (13. Qxd6 $2 Ng4+ 14. Kg1 Qf6 $17) 13... Ne5 14. Bxf8 (14. Bxe5 $2 Ng4+ 15. Kg1 Nxe5 $19) 14... Qxf8) 12. axb5 $14 {[%emt 0:09:53]} exd5 {[%emt 0:05:42]} 13. exd5 {[%emt 0:06:04]} Re8 {[%emt 0:08:23]} 14. Be2 {[%emt 0:01:45]} Bb7 {[%emt 0:07:12]} 15. Qc2 {[%emt 0:05:38]} Bxc3 {[%emt 0:02:32]} 16. Qxc3 {[%emt 0:00:14]} axb5 {[%emt 0:00:24]} 17. b3 {[%emt 0:00:14]} Ng6 {[%emt 0:02:29]} 18. Rxa8 {[%emt 0:01:19]} Bxa8 {[%emt 0:00:24]} 19. Bd2 {[%emt 0:03:10]} b4 {[%emt 0:00:19]} 20. Qb2 {[%emt 0:01:33]} Qb6 {[%emt 0:00:53]} (20... Bb7 $11 {keeps the balance.}) 21. Nf5 $16 {[%emt 0:05:58][%cal Od2h6] aiming for Bh6!} Ne5 {[%emt 0:13:04]} (21... Re5 $16 {keeps fighting.} 22. g4 h5) 22. Ra1 $18 {[%emt 0:02:23]} Bb7 {[%emt 0:01:31] [#]} 23. Qa2 {[%emt 0:02:51]} ({White should try} 23. Bg5 $1 $18 {[%cal Rg5f6] Hoping for Bxf6.} Qd8 24. Kg1) 23... Bc8 $14 {[%emt 0:01:31]} 24. Ne3 {[%emt 0:00:11]} (24. Ng3 $14) 24... Qd8 $11 {[%emt 0:01:45]} 25. Qa7 {[%emt 0:04:09]} (25. g3 $11) 25... h6 {[%emt 0:04:09]} (25... Neg4+ $142 26. Nxg4 (26. fxg4 $2 Ne4+ 27. Kg1 Nxd2 $19) 26... Nxg4+ 27. fxg4 Qf6+ 28. Bf3 (28. Ke1 $2 Qe5 $19) 28... Qd4+ (28... Bxg4 $2 29. Re1 $18) 29. Kg3 Qxd2) 26. Qa5 {[%emt 0:02:11]} ({White should play} 26. Re1) 26... Qe7 {[%emt 0:00:39]} (26... Neg4+ $1 $17 27. Nxg4 (27. fxg4 $2 {loses.} Ne4+ 28. Kg1 Qxa5 $19) 27... Nxg4+ 28. fxg4 Qf6+ 29. Bf3 (29. Ke1 $2 Bxg4 $19) 29... Qd4+ (29... Bxg4 30. Re1 $11) 30. Kf1 Qxd2) 27. Re1 $1 $15 {[%emt 0:00:35]} Bd7 {[%emt 0:03:19]} 28. Kg1 {[%emt 0:01:12]} Qf8 {[%emt 0:01:15]} 29. Ra1 {[%emt 0:00:42]} (29. Qa1 $11) 29... Qe7 {[%emt 0:00:46]} 30. Re1 {[%emt 0:00:07]} Qf8 {[%emt 0:00:07]} 31. Ra1 {[%emt 0:00:07] Weighted Error Value: White=0.35/Black=0.33.  Mistake:       	White=5     	Black=5      Inaccurate:     	White=3     	Black=2      OK:         	White=7     	Black=7      Best:        	White=1     	---        Strong:       	White=1     	---} 1/2-1/2

[Event "WSTCC-65 2024"]
[Site "Krakow"]
[Date "2024.07.04"]
[Round "3.2"]
[White "Barreto, Ignacio C. de Barros"]
[Black "Smith, Andrew Philip"]
[Result "1/2-1/2"]
[ECO "C41"]
[WhiteElo "2059"]
[BlackElo "2037"]
[Annotator "NA RC"]
[PlyCount "29"]
[EventDate "2024.07.01"]
[EventType "team-tourn"]
[EventCountry "POL"]
[SourceTitle "playchess.com"]
[Source "ChessBase"]
[SourceQuality "1"]
[TimeControl "40/5400+30:1800+30"]

1. e4 {[%emt 0:00:26]} e5 {[%emt 0:01:02]} 2. Nf3 {[%emt 0:00:42]} d6 {[%emt 0:00:10]} 3. d4 {[%emt 0:00:58]} exd4 {[%emt 0:00:22]} 4. Qxd4 {[%emt 0:02:16]} Nc6 {[%emt 0:03:41]} 5. Bb5 {[%emt 0:00:35]} Bd7 {[%emt 0:00:22]} 6. Bxc6 {[%emt 0:01:00]} Bxc6 {[%emt 0:00:42]} 7. Nc3 {[%emt 0:03:39]} Nf6 {[%emt 0:00:56]} 8. Bg5 {[%emt 0:00:57]} Be7 {[%emt 0:00:17]} 9. O-O-O {[%emt 0:01:05]} O-O {[%emt 0:00:42]} 10. Rhe1 {[%emt 0:04:33]} h6 {[%emt 0:23:30]} 11. Bh4 {[%emt 0:01:35]} Re8 {[%emt 0:10:22]} 12. Kb1 {[%emt 0:11:20]} a6 {[%emt 0:02:13]} 13. Qc4 {[%emt 0:11:27]} Nd7 {[%emt 0:14:27]} 14. Bxe7 {[%emt 0:02:08]} Rxe7 {[%emt 0:01:19]} 15. Nd5 {[%emt 0:00:22]} 1/2-1/2

[Event "WSTCC-65 2024"]
[Site "Krakow"]
[Date "2024.07.04"]
[Round "3.2"]
[White "Swierczewski, Marek"]
[Black "Baum, Bernd"]
[Result "1/2-1/2"]
[ECO "C11"]
[WhiteElo "2059"]
[BlackElo "2203"]
[Annotator "RC"]
[PlyCount "75"]
[EventDate "2024.07.01"]
[EventType "team-tourn"]
[EventCountry "POL"]
[SourceTitle "playchess.com"]
[Source "ChessBase"]
[SourceQuality "1"]
[TimeControl "40/5400+30:1800+30"]

1. e4 {[%emt 0:00:02]} e6 {[%emt 0:00:05]} 2. d4 {[%emt 0:00:07]} d5 {[%emt 0:00:08]} 3. Nc3 {[%emt 0:00:10]} Nf6 {[%emt 0:00:08]} 4. exd5 {[%emt 0:00:11]} exd5 {[%emt 0:00:13]} 5. Bd3 {[%emt 0:00:11]} Nc6 {[%emt 0:00:17]} 6. Nge2 {[%emt 0:00:16]} Nb4 {[%emt 0:01:25]} 7. O-O {[%emt 0:03:12]} Nxd3 {[%emt 0:03:51]} 8. Qxd3 {[%emt 0:00:10]} Be7 {[%emt 0:00:37]} 9. Ng3 {[%emt 0:02:27]} O-O {[%emt 0:02:22]} 10. Nf5 {[%emt 0:03:56]} Bxf5 {[%emt 0:02:19]} 11. Qxf5 {[%emt 0:00:08]} h6 {[%emt 0:04:15]} 12. Nd1 {[%emt 0:10:32]} Bd6 {[%emt 0:06:28]} 13. Ne3 {[%emt 0:00:21]} Re8 {[%emt 0:03:02]} 14. Qf3 {[%emt 0:01:12]} c6 {[%emt 0:05:05]} 15. Nf5 {[%emt 0:00:42]} Re4 {[%emt 0:05:46]} 16. h3 {[%emt 0:04:20]} Kh7 {[%emt 0:08:54]} 17. Be3 {[%emt 0:03:39]} Bf8 {[%emt 0:09:07]} 18. Rfe1 {[%emt 0:01:10]} Re6 {[%emt 0:06:26]} 19. Ng3 {[%emt 0:04:13]} Qa5 {[%emt 0:03:02]} 20. c3 {[%emt 0:06:05]} Rae8 {[%emt 0:00:07]} 21. Qf5+ {[%emt 0:00:46]} g6 {[%emt 0:02:26]} 22. Qc2 {[%emt 0:00:10]} Qc7 {[%emt 0:01:28]} 23. Bd2 {[%emt 0:00:16]} Bd6 {[%emt 0:01:43]} 24. Rxe6 {[%emt 0:00:54]} Rxe6 {[%emt 0:00:11]} 25. Nf1 {[%emt 0:00:30]} Ne4 {[%emt 0:03:28]} 26. Re1 {[%emt 0:02:21]} Qe7 {[%emt 0:00:38]} 27. Be3 {[%emt 0:01:23]} f5 {[%emt 0:02:08]} 28. Qc1 {[%emt 0:00:18]} g5 {[%emt 0:02:00]} 29. Qc2 {[%emt 0:06:23]} Kg7 {[%emt 0:03:14]} 30. Bc1 {[%emt 0:00:15]} Bc7 {[%emt 0:08:29]} 31. f3 {[%emt 0:05:15]} Ng3 {[%emt 0:01:46]} 32. Rxe6 {[%emt 0:00:09]} Qxe6 {[%emt 0:00:07]} 33. Nxg3 {[%emt 0:00:12]} Bxg3 {[%emt 0:00:13]} 34. Qd1 {[%emt 0:00:06]} Bc7 {[%emt 0:02:51]} 35. Kf1 {[%emt 0:00:24]} Qd6 {[%emt 0:01:17]} 36. Qe2 {[%emt 0:00:40]} Kf7 {[%emt 0:01:05]} 37. Qd3 {[%emt 0:01:44]} Kf6 {[%emt 0:00:35]} 38. Qe3 {[%emt 0:00:37]} 1/2-1/2

[Event "WSTCC-65 2024"]
[Site "Krakow"]
[Date "2024.07.04"]
[Round "3.3"]
[White "Littlewood, Paul E"]
[Black "Vatter, Hans-Joachim"]
[Result "1/2-1/2"]
[ECO "C02"]
[WhiteElo "2318"]
[BlackElo "2214"]
[Annotator "TA"]
[PlyCount "61"]
[EventDate "2024.07.01"]
[EventType "team-tourn"]
[EventCountry "POL"]
[SourceTitle "playchess.com"]
[Source "ChessBase"]
[SourceQuality "1"]
[TimeControl "40/5400+30:1800+30"]

{[%evp 18,61,23,19,18,15,14,12,31,38,53,36,29,50,43,41,62,14,36,0,35,22,15,22,9,16,14,17,13,16,41,0,0,0,0,0,0,-25,-29,-34,-9,-25,-26,-75,-38,-104]} 1. e4 {[%emt 0:00:11]} e6 {[%emt 0:00:30]} 2. d4 {[%emt 0:01:11]} d5 {[%emt 0:00:02]} 3. e5 {[%emt 0:01:00]} c5 {[%emt 0:00:10]} 4. c3 {[%emt 0:00:25]} Qb6 {[%emt 0:04:00]} 5. Nf3 {[%emt 0:01:43]} Bd7 {[%emt 0:00:40]} 6. Be2 {[%emt 0:08:46]} Bb5 {[%emt 0:01:08]} 7. c4 {[%emt 0:06:38]} Bxc4 {[%emt 0:02:12]} 8. Bxc4 {[%emt 0:00:15]} dxc4 {[%emt 0:00:02]} 9. d5 {[%emt 0:00:34]} exd5 {[%emt 0:06:06]} 10. Qxd5 {[%emt 0:01:33][%cal Of3g5] [#] And now Ng5! would win.} Ne7 {[%emt 0:12:19]} 11. Qe4 {[%emt 0:04:02][%cal Oe1g1]} Qc6 {[%emt 0:04:33]} 12. Qxc4 {[%emt 0:01:35]} Nd7 {[%emt 0:00:22][%cal Bb8d7,Bd7b6,Bb6d5,Bd5f4,Bf4h3][%mdl 32] The position is equal.} 13. Nc3 {[%emt 0:02:45][%cal Bb1c3,Bc3e4,Be4g5,Bg5e6][%mdl 32]} Ng6 {[%emt 0:09:58]} 14. O-O {[%emt 0:01:23][%cal Oe5e6] Threatens to win with e6!} Be7 {[%emt 0:00:08]} 15. Re1 {[%emt 0:02:54] [#] Strongly threatening e6.} Nb6 {[%emt 0:09:00]} 16. Qg4 {[%emt 0:02:40]} Qe6 {[%emt 0:09:21]} 17. Qg3 {[%emt 0:06:44] White is more active.} (17. Qe4 $14) 17... O-O $11 {[%emt 0:06:45]} 18. Ne4 {[%emt 0:05:59]} Nd5 {[%emt 0:04:06]} 19. Bg5 {[%emt 0:04:34]} Bxg5 {[%emt 0:04:37]} 20. Nexg5 {[%emt 0:07:27]} Qf5 {[%emt 0:01:26]} 21. e6 {[%emt 0:01:41]} fxe6 $1 {[%emt 0:02:05]} 22. Nxe6 {[%emt 0:00:33]} Rfe8 {[%emt 0:04:38]} 23. Nxc5 {[%emt 0:14:57]} Ndf4 {[%emt 0:02:57]} 24. Qg5 {[%emt 0:00:39]} (24. Nxb7 $2 {perishes.} Qd5 (24... Ne2+ 25. Rxe2 Rxe2 26. Nd4 $16) 25. h4 Ne2+ (25... Qxb7 $2 26. Qg4 $19) 26. Rxe2 Rxe2 $19) 24... Nh3+ {[%emt 0:00:47]} 25. gxh3 {[%emt 0:00:07]} Qxf3 {[%emt 0:00:08]} 26. Re3 {[%emt 0:04:50]} Qf7 {[%emt 0:04:14]} 27. Rae1 {[%emt 0:02:19]} Rxe3 {[%emt 0:02:32]} 28. Qxe3 {[%emt 0:01:40]} Qxa2 {[%emt 0:05:51]} 29. b3 {[%emt 0:01:18] White wants to mate with Qe6+.} Rf8 {[%emt 0:01:56]} 30. Ne6 {[%emt 0:05:18]} (30. Nxb7 $11 {is superior.} Nf4 31. Kh1) 30... Rf7 {[%emt 0:00:53]} 31. Qg3 {Weighted Error Value: White=0.14 (very precise) /Black=0.09 (flawless) .  Mistake:       	White=3     	---        Inaccurate:     	White=2     	Black=2      OK:         	White=7     	Black=10     Best:        	White=2     	---        Strong:       	---       	Black=1} (31. h4 $15) 1/2-1/2